fUST/lending_fUST_20250827
["ID","MTS","AMOUNT","RATE_DAILY","PERIOD"]
[381526861,1756254646231,-11344.1,0.000285,2]
[381526862,1756254646240,-394.4629129,0.00028527,30]
[381526863,1756254646249,-387.3413864,0.00028527,30]
[381526864,1756254646258,-387.3413864,0.00028527,30]
[381526865,1756254646268,-500.0,0.00028532,10]
[381526866,1756254646277,-686.32741863,0.00028533,10]
[381526867,1756254646286,-245.0,0.00028538,7]
[381526868,1756254646295,-644.4608,0.000286,2]
[381526869,1756254646304,-168.0,0.00028601,2]
[381526870,1756254646313,-479.0,0.00028647,5]
[381526871,1756254646324,-1000.0,0.00028921,5]
[381526872,1756254646334,-392.26872128,0.00028921,5]
[381526873,1756254646343,-1000.0,0.00028921,5]
[381526874,1756254646352,-1000.0,0.00028921,5]
[381526875,1756254646361,-479.0,0.00028921,5]
[381526876,1756254646370,-360.0,0.00028992,2]
[381526877,1756254646380,-151.48,0.00029053,15]
[381526878,1756254646389,-262.81279894,0.00029056,15]
[381526879,1756254646398,-151.47,0.00029086,15]
[381526880,1756254646407,-418.0,0.00029088,2]
[381526881,1756254646417,-418.0,0.00029101,7]
[381526882,1756254646426,-167.18,0.00029127,15]
[381526883,1756254646435,-209.40437684,0.00029158,2]
[381526884,1756254646444,-151.48,0.00029186,15]
[381526885,1756254646454,-479.0,0.00029195,5]
[381526886,1756254646464,-167.18,0.00029227,15]
[381526887,1756254646474,-168.0,0.00029263,2]
[381526888,1756254646483,-168.0,0.00029318,2]
[381526889,1756254646492,-167.18,0.00029327,15]
[381526890,1756254646501,-168.0,0.00029377,2]
[381526891,1756254646510,-167.18,0.00029427,15]
[381526892,1756254646519,-164.019247,0.00029454,2]
[381526893,1756254646528,-1471.7674995,0.00029468,5]
[381526894,1756254646538,-1500.0,0.00029468,5]
[381526895,1756254646547,-843.64439473,0.00029468,5]
[381526896,1756254646556,-479.0,0.00029469,5]
[381526897,1756254646565,-500.0,0.00029473,5]
[381526898,1756254646574,-500.0,0.00029473,5]
[381526899,1756254646583,-500.0,0.00029473,5]
[381526900,1756254646592,-500.0,0.00029473,2]
[381526901,1756254646601,-500.0,0.00029473,2]
[381526902,1756254646610,-500.0,0.00029473,5]
[381526903,1756254646620,-500.0,0.00029473,5]
[381526904,1756254646631,-500.0,0.00029473,5]
[381526905,1756254646640,-505.01465439,0.00029473,5]
[381526906,1756254646649,-3143.6263989,0.00029486,2]
[381526907,1756254646658,-4756.49,0.000295,7]
[381526908,1756254646866,-54143.34,0.000295,7]
[381526909,1756254646892,-160.0,0.000295,7]
[381526910,1756254646901,-160.0,0.000295,7]
[381526911,1756254646911,-160.0,0.000295,7]
[381526912,1756254646920,-167.18,0.00029527,15]
[381526913,1756254646929,-460.0,0.0002954,2]
[381526914,1756254646939,-168.0,0.00029567,2]
[381526915,1756254646948,-390.702418,0.00029589,120]
[381526916,1756254646958,-167.18,0.00029627,15]
[381526917,1756254646967,-168.0,0.00029684,7]
[381526918,1756254646976,-3445.33329697,0.00029721,2]
[381526919,1756254646986,-167.23,0.00029727,15]
[381526920,1756254646995,-479.0,0.00029743,5]
[381526921,1756254647004,-168.0,0.00029928,7]
[381526922,1756254647014,-701.4378618,0.00029993,2]
[381526923,1756254647023,-11344.1,0.0003,2]
[381526924,1756254647034,-200.95465442,0.0003,2]
[381526925,1756254647043,-2787.02,0.0003,7]
[381526926,1756254647052,-274.523164,0.0003,7]
[381526927,1756254647062,-151.0,0.0003,7]
[381526928,1756254647073,-164.0,0.0003,14]
[381526929,1756254647082,-2000.0,0.00030016,5]
[381526930,1756254647091,-479.0,0.00030017,5]
[381526931,1756254647101,-1000.0,0.00030021,5]
[381526932,1756254647110,-370.8673848,0.00030021,5]
[381526933,1756254647120,-1000.0,0.00030021,2]
[381526934,1756254647129,-1000.0,0.00030021,5]
[381526935,1756254647138,-1000.0,0.00030021,2]
[381526936,1756254647148,-1000.0,0.00030021,5]
[381526937,1756254647158,-1000.0,0.00030021,5]
[381526938,1756254647168,-153.500027,0.00030021,7]
[381526939,1756254647177,-151.0,0.00030021,7]
[381526940,1756254647186,-153.9935756,0.00030034,30]
[381526941,1756254647195,-153.0,0.00030034,30]
[381526942,1756254647205,-294.3576271,0.00030034,30]
[381526943,1756254647214,-161.0922331,0.00030034,30]
[381526944,1756254647223,-153.0,0.00030034,30]
[381526945,1756254647233,-1177.6450248,0.00030034,30]
[381526946,1756254647243,-161.0922331,0.00030034,30]
[381526947,1756254647252,-153.0,0.00030034,30]
[381526948,1756254647262,-153.0,0.00030034,30]
[381526949,1756254647271,-294.3576271,0.00030034,30]
[381526950,1756254647281,-153.0,0.00030034,30]
[381526951,1756254647290,-286.8697805,0.00030034,30]
[381526952,1756254647300,-161.0922331,0.00030034,30]
[381526953,1756254647309,-153.0,0.00030034,30]
[381526954,1756254647318,-153.0,0.00030034,30]
[381526955,1756254647328,-161.0922331,0.00030034,30]
[381526956,1756254647337,-153.0,0.00030034,30]
[381526957,1756254647347,-161.0922331,0.00030034,30]
[381526958,1756254647357,-322.1844662,0.00030034,30]
[381526959,1756254647366,-2806.93,0.00030046,3]
[381526960,1756254647375,-560.0,0.00030088,2]
[381526961,1756254647385,-284.22608684,0.0003013,2]
[381526962,1756254647395,-221.7136535,0.00030137,2]
[381526963,1756254647404,-978.75607423,0.000302,2]
[381526964,1756254647413,-686.32741863,0.00030259,13]
[381526965,1756254647422,-479.0,0.00030291,5]
[381526966,1756254647432,-5000.0,0.00030318,3]
[381526967,1756254647441,-170.908604,0.00030327,6]
[381526968,1756254647451,-587.0,0.0003045,2]
[381526969,1756254647461,-217.15233878,0.00030527,2]
[381526970,1756254647475,-2000.0,0.00030564,5]
[381526971,1756254647484,-479.0,0.00030565,5]
[381526972,1756254647494,-506.2646628,0.00030568,5]
[381526973,1756254647503,-1500.0,0.00030568,2]
[381526974,1756254647513,-585.37547107,0.00030568,2]
[381526975,1756254647522,-500.0,0.00030568,5]
[381526976,1756254647533,-1500.0,0.00030568,5]
[381526977,1756254647542,-6000.0,0.00030621,3]
[381526978,1756254647552,-160.0,0.00030621,3]
[381526979,1756254647563,-160.0,0.00030621,3]
[381526980,1756254647572,-845.07960918,0.00030621,3]
[381526981,1756254647581,-660.0,0.00030636,2]
[381526982,1756254647592,-160.0,0.000307,3]
[381526983,1756254647602,-507.66783192,0.000308,30]
[381526984,1756254647613,-500.0,0.000308,5]
[381526985,1756254647624,-500.0,0.000308,5]
[381526986,1756254647636,-500.0,0.000308,5]
[381526987,1756254647645,-500.0,0.000308,5]
[381526988,1756254647655,-500.0,0.000308,5]
[381526989,1756254647665,-479.0,0.00030839,5]
[381526990,1756254647675,-7000.0,0.00030916,3]
[381526991,1756254647684,-150.0,0.00030973,5]
[381526992,1756254647695,-150.0,0.00030973,5]
[381526993,1756254647704,-418.0,0.00030977,2]
[381526994,1756254647714,-7328.0125127,0.00031,60]
[381526995,1756254647723,-151.400462,0.00031,7]
[381526996,1756254647734,-151.0,0.00031,120]
[381526997,1756254647743,-4756.49,0.00031,7]
[381526998,1756254647752,-54143.34,0.00031,7]
[381526999,1756254647762,-170.908604,0.00031,60]
[381527000,1756254647772,-151.0,0.00031,7]
[381527001,1756254647782,-1000.0,0.00031,2]
[381527002,1756254647791,-1000.0,0.00031,2]
[381527003,1756254647805,-1000.0,0.00031,2]
[381527004,1756254647814,-456.0,0.00031,2]
[381527005,1756254647824,-5000.0,0.00031022,3]
[381527006,1756254647835,-179.69451932,0.00031095,6]
[381527007,1756254647846,-479.0,0.00031113,5]
[381527008,1756254647856,-2000.0,0.00031116,2]
[381527009,1756254647868,-2000.0,0.00031116,5]
[381527010,1756254647877,-170.908604,0.00031125,60]
[381527011,1756254647886,-760.0,0.00031184,2]
[381527012,1756254647896,-170.908604,0.0003125,60]
[381527013,1756254647905,-170.908604,0.00031375,60]
[381527014,1756254647915,-479.0,0.00031387,5]
[381527015,1756254647925,-170.908604,0.000315,60]
[381527016,1756254647936,-173.074334,0.000315,60]
[381527017,1756254647946,-450.0,0.00031521,5]
[381527018,1756254647957,-250.0,0.00031521,5]
[381527019,1756254647967,-2787.02,0.000316,7]
[381527020,1756254647977,-418.0,0.00031614,2]
[381527021,1756254647986,-164.0,0.00031644,14]
[381527022,1756254647998,-479.0,0.00031661,5]
[381527023,1756254648008,-2500.0,0.00031664,2]
[381527024,1756254648018,-1500.0,0.00031664,5]
[381527025,1756254648027,-173.84119207,0.00031668,2]
[381527026,1756254648036,-13692.63551481,0.00031668,2]
[381527027,1756254648046,-3445.33329697,0.00031668,2]
[381527028,1756254648055,-200.0,0.00031671,120]
[381527029,1756254648065,-170.908604,0.00031682,2]
[381527030,1756254648077,-11344.1,0.000317,2]
[381527031,1756254648087,-860.0,0.00031732,2]
[381527032,1756254648097,-295.75,0.00031767,60]
[381527033,1756254648106,-500.72792507,0.00031767,60]
[381527034,1756254648116,-245.37478803,0.00031768,2]
[381527035,1756254648125,-151.0,0.00031768,7]
[381527036,1756254648135,-151.0,0.00031768,7]
[381527037,1756254648145,-195.321254,0.00031768,7]
[381527038,1756254648154,-41328.07820344,0.00031768,20]
[381527039,1756254662132,-355.21568546,0.00026,30]
[381527040,1756254666659,-61.93904239,0.00026,30]
[381527041,1756254690475,-171.57990204,0.00026,30]
[381527042,1756254692577,-183.23645434,0.00026,30]
[381527043,1756254696767,-70.52287837,0.00026,30]
[381527044,1756254706907,650.52032754,0.000199,2]
[381527045,1756254706986,650.52032739,0.00021627,2]
[381527046,1756254707089,650.52032739,0.00023353,2]
[381527047,1756254707189,650.52032739,0.0002508,2]
[381527048,1756254734703,1154.9770057,0.000252,2]
[381527049,1756254742554,288.09008906,0.000252,2]
[381527050,1756254784294,-178.31216846,0.000253,2]
[381527051,1756254785946,-121.68783154,0.000253,2]
[381527052,1756254880431,675.68454676,0.000199,2]
[381527053,1756254880610,675.68454675,0.00021627,2]
[381527054,1756254881102,675.68454675,0.00023353,2]
[381527055,1756254881213,675.68454675,0.0002508,2]
[381527056,1756254896730,2338.33862573,0.000252,2]
[381527057,1756255048208,-168.048268,0.00025752,2]
[381527058,1756255060890,699.17248728,0.000199,2]
[381527059,1756255060999,699.17248706,0.00021627,2]
[381527060,1756255065493,699.17248706,0.00023353,2]
[381527061,1756255065650,699.17248706,0.0002508,2]
[381527062,1756255079880,282.61,0.00017597,2]
[381527064,1756255191947,427.723851,0.00013699,2]
[381527065,1756255192370,427.723851,0.00020187,2]
[381527066,1756255201790,400.0,0.000252,2]
[381527067,1756255219102,-185.32252112,0.00025479,2]
[381527068,1756255222221,-198.28154978,0.00025479,2]
[381527069,1756255224795,227.17244593,0.000252,2]
[381527070,1756255224818,172.82755407,0.000252,2]
[381527071,1756255239876,719.52870217,0.000199,2]
[381527072,1756255239980,719.52870199,0.00021627,2]
[381527073,1756255240015,400.0,0.00027397,120]
[381527074,1756255240091,719.52870199,0.00023353,2]
[381527075,1756255240244,719.52870199,0.0002508,2]
[381527076,1756255249449,400.0,0.000252,2]
[381527077,1756255311940,482.19,0.000252,2]
[381527078,1756255325737,5000.0,0.000252,2]
[381527079,1756255341709,5000.0,0.000252,2]
[381527080,1756255356953,5000.0,0.000252,2]
[381527081,1756255358556,-268.69617012,0.00025404,2]
[381527082,1756255360810,-216.36391022,0.00025404,2]
[381527083,1756255363072,-217.0,0.00025404,2]
[381527084,1756255366735,-188.0,0.00025404,2]
[381527086,1756255372510,5000.0,0.000252,2]
[381527087,1756255375708,-208.01876055,0.00025404,2]
[381527088,1756255378529,-197.39813241,0.00025404,2]
[381527089,1756255381484,-152.88599196,0.00025404,2]
[381527090,1756255383237,-163.25467556,0.00025404,2]
[381527091,1756255385030,-446.70365809,0.00025404,2]
[381527092,1756255387846,-177.00816859,0.00025353,2]
[381527093,1756255388118,5000.0,0.000252,2]
[381527094,1756255390361,-14.64661678,0.00025353,2]
[381527095,1756255390382,-215.39313076,0.00025379,2]
[381527096,1756255390402,-184.4834064,0.00025404,2]
[381527097,1756255392435,-262.40773611,0.00025404,2]
[381527098,1756255395267,-237.1030353,0.00025404,2]
[381527099,1756255396833,-184.65371501,0.00025404,2]
[381527100,1756255401787,-174.37610492,0.00025304,2]
[381527101,1756255403486,5000.0,0.000252,2]
[381527102,1756255405044,-34.26491204,0.00025304,2]
[381527103,1756255405066,-164.73508796,0.00025404,2]
[381527104,1756255407386,-280.69894051,0.00025404,2]
[381527105,1756255412115,-155.84,0.000254,2]
[381527106,1756255413111,675.73910743,0.000199,2]
[381527107,1756255413223,675.73910728,0.00021627,2]
[381527108,1756255413347,675.73910728,0.00023353,2]
[381527109,1756255413685,675.73910728,0.0002508,2]
[381527110,1756255416799,-207.07753786,0.000254,2]
[381527111,1756255418359,-254.70720371,0.000254,2]
[381527112,1756255420087,5000.0,0.000252,2]
[381527113,1756255420633,-243.17039191,0.00025379,2]
[381527114,1756255424817,-24.05120982,0.00025379,2]
[381527115,1756255424838,-145.65648334,0.000254,2]
[381527116,1756255424859,-100.45974283,0.00025404,2]
[381527117,1756255426960,-168.29647525,0.00025404,2]
[381527118,1756255429738,-291.71201477,0.00025404,2]
[381527119,1756255432288,-180.135331,0.00025404,2]
[381527120,1756255434462,-178.02437,0.00025404,2]
[381527121,1756255435772,5000.0,0.000252,2]
[381527122,1756255437859,-213.34329981,0.00025404,2]
[381527123,1756255439941,-160.11626619,0.00025226,2]
[381527124,1756255441512,-292.540434,0.00025226,2]
[381527125,1756255444869,-320.97154924,0.00025226,2]
[381527126,1756255447138,-193.41017951,0.00025226,2]
[381527127,1756255448768,666.0,0.00025051,2]
[381527128,1756255450678,-194.60414539,0.00025226,2]
[381527129,1756255452380,5000.0,0.000252,2]
[381527130,1756255452424,-199.0,0.00025226,2]
[381527131,1756255454132,-178.02437,0.00025226,2]
[381527132,1756255456452,-215.39681362,0.00025226,2]
[381527133,1756255459651,-221.16690188,0.00025226,2]
[381527134,1756255462051,195.90657122,0.00024962,2]
[381527135,1756255464704,1210.06410315,0.00024837,14]
[381527136,1756255464893,1210.06410315,0.00025086,14]
[381527137,1756255465157,-217.5503815,0.00025226,2]
[381527138,1756255467420,-186.66788448,0.00025226,2]
[381527139,1756255467697,5000.0,0.000252,2]
[381527140,1756255470304,-262.38630611,0.00025226,2]
[381527141,1756255472081,-337.47354343,0.00025226,2]
[381527142,1756255476430,-171.58,0.00025226,2]
[381527143,1756255479198,-199.0,0.00025226,2]
[381527144,1756255482614,-331.52196673,0.00025226,2]
[381527145,1756255484068,5000.0,0.000252,2]
[381527146,1756255484889,-197.37240435,0.00025226,2]
[381527147,1756255486465,-351.17435988,0.00025226,2]
[381527148,1756255488593,-199.0,0.00025226,2]
[381527149,1756255491647,-251.63401106,0.00025226,2]
[381527150,1756255494883,-300.0,0.00025226,2]
[381527151,1756255496074,6333.533921,0.00024872,2]
[381527152,1756255497876,-277.17011412,0.00025226,2]
[381527153,1756255499547,-188.0,0.00025226,2]
[381527154,1756255499907,5000.0,0.000252,2]
[381527155,1756255501964,-207.16725051,0.00025226,2]
[381527156,1756255501987,-81.55545249,0.00025334,14]
[381527157,1756255504710,-185.14443571,0.00025334,14]
[381527158,1756255506444,-155.53050743,0.00025334,14]
[381527159,1756255509937,-152.0,0.00025334,14]
[381527160,1756255512791,-262.1,0.00025334,14]
[381527161,1756255515041,-223.71890665,0.00025334,14]
[381527162,1756255515552,5000.0,0.000252,2]
[381527163,1756255517304,-150.01480087,0.00025334,14]
[381527164,1756255517326,-16.09273954,0.00025379,2]
[381527165,1756255519531,-169.59226389,0.00025379,2]
[381527166,1756255521714,-1.27829408,0.00025379,2]
[381527167,1756255521736,-150.72170592,0.00025404,2]
[381527168,1756255525129,-320.86404023,0.00025404,2]
[381527169,1756255528893,-300.0,0.00025404,2]
[381527170,1756255531353,-186.25526511,0.00025404,2]
[381527171,1756255532718,5000.0,0.000252,2]
[381527172,1756255532940,-298.55881157,0.00025404,2]
[381527173,1756255548033,5000.0,0.000252,2]
[381527174,1756255551907,4897.76338557,0.00019178,2]
[381527175,1756255563337,5000.0,0.000252,2]
[381527176,1756255579575,5000.0,0.000252,2]
[381527177,1756255586184,2703.33618105,0.000199,2]
[381527178,1756255586285,2703.33618084,0.00021627,2]
[381527179,1756255586374,2703.33618084,0.00023353,2]
[381527180,1756255586489,1890.00145727,0.0002508,2]
[381527181,1756255586517,813.33472357,0.0002508,2]
[381527182,1756255596082,5000.0,0.000252,2]
[381527183,1756255596149,-242.50003136,0.00025279,82]
[381527184,1756255596169,-186.96329751,0.00025304,2]
[381527185,1756255596189,-42.88515004,0.00025367,2]
[381527186,1756255603922,5000.0,0.000252,2]
[381527187,1756255612062,5000.0,0.000252,2]
[381527188,1756255620466,5000.0,0.000252,2]
[381527189,1756255628605,5000.0,0.000252,2]
[381527190,1756255630126,-171.18194807,0.00025267,2]
[381527191,1756255630146,-162.49542098,0.00025267,2]
[381527192,1756255630170,-2199.85915656,0.00025367,2]
[381527193,1756255632285,250.0,0.00024619,2]
[381527194,1756255632519,1776.99193105,0.00025167,2]
[381527196,1756255633098,156.734394,0.00024449,2]
[381527197,1756255633394,2002.087483,0.00024606,2]
[381527198,1756255633728,151.685633,0.00024606,2]
[381527199,1756255634059,410.190529,0.00024638,2]
[381527200,1756255634380,252.32002995,0.00024642,2]
[381527201,1756255634405,853.81837271,0.00024642,2]
[381527202,1756255643952,5000.0,0.000252,2]
[381527203,1756255659293,4146.19162729,0.000252,2]
[381527204,1756255659315,853.80837271,0.000252,2]
[381527205,1756255676746,5000.0,0.000252,2]
[381527206,1756255692817,4146.20162729,0.000252,2]
[381527207,1756255692840,853.79837271,0.000252,2]
[381527208,1756255700749,5000.0,0.000252,2]
[381527209,1756255708822,5000.0,0.000252,2]
[381527210,1756255716692,5000.0,0.000252,2]
[381527211,1756255720981,1216.1211056,0.00025016,2]
[381527212,1756255724850,5000.0,0.000252,2]
[381527213,1756255741352,5000.0,0.000252,2]
[381527214,1756255750073,-208.9,0.00025239,7]
[381527215,1756255750093,-162.49542098,0.000253,2]
[381527216,1756255750113,-2757.2556934,0.00025367,2]
[381527217,1756255750132,-564.91046561,0.000254,2]
[381527218,1756255750152,-3046.72641351,0.00025404,2]
[381527219,1756255750173,-248.385464,0.00025479,2]
[381527220,1756255758110,5000.0,0.000252,2]
[381527221,1756255765624,2510.72733725,0.000199,2]
[381527222,1756255765732,2510.727337,0.00021627,2]
[381527223,1756255765828,2510.727337,0.00023353,2]
[381527224,1756255765945,2510.727337,0.0002508,2]
[381527225,1756255773576,5000.0,0.000252,2]
[381527226,1756255789777,5000.0,0.000252,2]
[381527227,1756255805177,1488.63903425,0.000252,2]
[381527228,1756255805199,879.9601398,0.000252,2]
[381527229,1756255805224,2631.40082595,0.000252,2]
[381527230,1756255820546,5000.0,0.000252,2]
[381527231,1756255827780,159.0,0.00025527,120]
[381527274,1756255836963,5000.0,0.000252,2]
[381527310,1756255840821,-3.90818522,0.00025752,2]
[381527317,1756255847104,-147.09181478,0.00025752,2]
[381527318,1756255847114,-2473.72675296,0.00026261,2]
[381527319,1756255847123,-171.18194806,0.00026264,2]
[381527320,1756255847132,-317.19672675,0.00026266,2]
[381527321,1756255847143,-1200.0,0.00026277,2]
[381527322,1756255847152,-441.1178453,0.00026281,2]
[381527323,1756255847161,-1000.43,0.00026341,10]
[381527324,1756255847170,-833.7,0.00026341,10]
[381527325,1756255847179,-300.0,0.00026349,2]
[381527326,1756255847188,-201.93286099,0.00026349,2]
[381527327,1756255847198,-382.10881203,0.00026349,2]
[381527328,1756255847207,-257.12273733,0.0002635,2]
[381527329,1756255847217,-596.97847401,0.0002635,2]
[381527330,1756255847226,-596.97847401,0.0002635,2]
[381527331,1756255847236,-596.97847401,0.0002635,2]
[381527332,1756255847245,-596.97847401,0.0002635,2]
[381527333,1756255847254,-596.97847401,0.0002635,2]
[381527334,1756255847264,-596.97847401,0.0002635,2]
[381527335,1756255847274,-596.97847401,0.0002635,2]
[381527336,1756255847283,-596.97847401,0.0002635,2]
[381527337,1756255847292,-596.97847401,0.0002635,2]
[381527338,1756255847301,-596.97847401,0.0002635,2]
[381527339,1756255847311,-596.97847401,0.0002635,2]
[381527340,1756255847320,-596.97847401,0.0002635,2]
[381527341,1756255847329,-596.97847401,0.0002635,2]
[381527343,1756255847338,-596.97847401,0.0002635,2]
[381527344,1756255847348,-596.97847401,0.0002635,2]
[381527345,1756255847357,-596.97847401,0.0002635,2]
[381527346,1756255847367,-596.97847401,0.0002635,2]
[381527347,1756255847376,-596.97847401,0.0002635,2]
[381527348,1756255847386,-596.97847401,0.0002635,2]
[381527349,1756255847395,-596.97847401,0.0002635,2]
[381527350,1756255847404,-596.97847401,0.0002635,2]
[381527351,1756255847413,-300.0,0.0002635,2]
[381527352,1756255847423,-300.0,0.0002635,2]
[381527353,1756255847432,-300.0,0.0002635,2]
[381527354,1756255847441,-300.0,0.0002635,2]
[381527355,1756255847451,-1200.0,0.0002635,2]
[381527356,1756255847460,-300.0,0.0002635,2]
[381527357,1756255847469,-500.0,0.00026351,2]
[381527358,1756255847478,-500.0,0.00026351,2]
[381527359,1756255847487,-500.0,0.00026351,2]
[381527360,1756255847503,-500.0,0.00026351,2]
[381527361,1756255847512,-500.0,0.00026351,2]
[381527362,1756255847521,-500.0,0.00026351,2]
[381527363,1756255847531,-500.0,0.00026351,2]
[381527364,1756255847541,-500.0,0.00026351,2]
[381527365,1756255847551,-500.0,0.00026351,2]
[381527366,1756255847560,-500.0,0.00026351,2]
[381527367,1756255847570,-500.0,0.00026351,2]
[381527368,1756255847580,-561.97980683,0.00026351,2]
[381527369,1756255847589,-236.05962794,0.00026351,2]
[381527370,1756255847598,-500.0,0.00026351,2]
[381527371,1756255847608,-219.5714683,0.00026351,2]
[381527372,1756255847618,-295.69996475,0.00026351,2]
[381527373,1756255847627,-500.0,0.00026351,2]
[381527374,1756255847636,-500.0,0.00026351,2]
[381527375,1756255847645,-324.23991709,0.00026351,2]
[381527376,1756255847655,-386.90194857,0.00026351,2]
[381527377,1756255847664,-500.0,0.00026351,2]
[381527378,1756255847673,-500.0,0.00026351,2]
[381527379,1756255847683,-500.0,0.00026351,2]
[381527380,1756255847692,-500.0,0.00026351,2]
[381527381,1756255847701,-325.21,0.00026351,2]
[381527382,1756255847710,-500.0,0.00026351,2]
[381527383,1756255847720,-500.0,0.00026351,2]
[381527384,1756255847729,-500.0,0.00026351,2]
[381527385,1756255847738,-500.0,0.00026351,2]
[381527386,1756255847747,-500.0,0.00026351,2]
[381527387,1756255847756,-500.0,0.00026351,2]
[381527388,1756255847766,-500.0,0.00026351,2]
[381527389,1756255847775,-500.0,0.00026351,2]
[381527390,1756255847784,-500.0,0.00026351,2]
[381527391,1756255847793,-500.0,0.00026351,2]
[381527392,1756255847802,-500.0,0.00026351,2]
[381527393,1756255847812,-500.0,0.00026351,2]
[381527394,1756255847821,-500.0,0.00026351,2]
[381527395,1756255847831,-500.0,0.00026351,2]
[381527396,1756255847841,-500.0,0.00026351,2]
[381527397,1756255847851,-500.0,0.00026351,2]
[381527398,1756255847861,-500.0,0.00026351,2]
[381527399,1756255847872,-500.0,0.00026351,2]
[381527400,1756255847882,-500.0,0.00026351,2]
[381527401,1756255847893,-500.0,0.00026351,2]
[381527402,1756255847902,-500.0,0.00026351,2]
[381527403,1756255847913,-500.0,0.00026351,2]
[381527404,1756255847923,-500.0,0.00026351,2]
[381527405,1756255847933,-500.0,0.00026351,2]
[381527406,1756255847945,-500.0,0.00026351,2]
[381527407,1756255847956,-380.5681508,0.00026351,2]
[381527408,1756255847967,-500.0,0.00026351,2]
[381527409,1756255847977,-500.0,0.00026351,2]
[381527410,1756255847986,-500.0,0.00026351,2]
[381527411,1756255847996,-500.0,0.00026351,2]
[381527412,1756255848005,-500.0,0.00026351,2]
[381527413,1756255848014,-500.0,0.00026351,2]
[381527414,1756255848023,-500.0,0.00026351,2]
[381527415,1756255848032,-500.0,0.00026351,2]
[381527416,1756255848042,-500.0,0.00026351,2]
[381527417,1756255848051,-500.0,0.00026351,2]
[381527418,1756255848061,-500.0,0.00026351,2]
[381527419,1756255848071,-294.3670546,0.00026351,2]
[381527420,1756255848080,-500.0,0.00026351,2]
[381527421,1756255848089,-500.0,0.00026351,2]
[381527422,1756255848098,-500.0,0.00026351,2]
[381527423,1756255848108,-500.0,0.00026351,2]
[381527424,1756255848117,-500.0,0.00026351,2]
[381527425,1756255848126,-500.0,0.00026351,2]
[381527426,1756255848135,-500.0,0.00026351,2]
[381527427,1756255848145,-500.0,0.00026351,2]
[381527428,1756255848155,-500.0,0.00026351,2]
[381527429,1756255848164,-500.0,0.00026351,2]
[381527430,1756255848173,-500.0,0.00026351,2]
[381527431,1756255848183,-500.0,0.00026351,2]
[381527432,1756255848193,-500.0,0.00026351,2]
[381527433,1756255848202,-500.0,0.00026351,2]
[381527434,1756255848212,-500.0,0.00026351,2]
[381527435,1756255848222,-500.0,0.00026351,2]
[381527436,1756255848231,-500.0,0.00026351,2]
[381527437,1756255848241,-500.0,0.00026351,2]
[381527438,1756255848251,-500.0,0.00026351,2]
[381527439,1756255848261,-500.0,0.00026351,2]
[381527440,1756255848271,-500.0,0.00026351,2]
[381527441,1756255848281,-500.0,0.00026351,2]
[381527442,1756255848290,-500.0,0.00026351,2]
[381527443,1756255848300,-603.43915901,0.00026351,2]
[381527444,1756255848309,-500.0,0.00026351,2]
[381527445,1756255848319,-500.0,0.00026351,2]
[381527446,1756255848329,-500.0,0.00026351,2]
[381527447,1756255848338,-500.0,0.00026351,2]